fUSD/lending_fUSD_20250124
["ID","MTS","AMOUNT","RATE_DAILY","PERIOD"]
[350235058,1737724044118,-500.0,0.00018469,2]
[350235059,1737724044139,-500.0,0.00018469,2]
[350235060,1737724044162,-94.74273591,0.00018469,2]
[350235065,1737724232422,-163.79,0.00015686,2]
[350235066,1737724232433,-250.0,0.00017603,2]
[350235067,1737724232443,-163.79,0.00017949,2]
[350235068,1737724232453,-101.97999485,0.00018012,2]
[350235069,1737724232483,-152.30000515,0.00018012,2]
[350235070,1737724232492,-247.54,0.00018012,2]
[350235071,1737724232502,-45.77212751,0.00018012,2]
[350235072,1737724236643,-200.06787249,0.00018012,2]
[350235073,1737724236654,-254.65,0.00018012,2]
[350235074,1737724236664,-247.17,0.00018012,2]
[350235075,1737724236675,-248.52,0.00018012,2]
[350235076,1737724236687,-251.34,0.00018012,2]
[350235077,1737724236697,-250.3,0.00018012,2]
[350235078,1737724236706,-173.4,0.00018082,2]
[350235079,1737724236726,-1121.06088526,0.000181,2]
[350235080,1737724236739,-1069.18980609,0.000181,2]
[350235081,1737724236749,-1764.45527375,0.000181,2]
[350235082,1737724236763,-116.54472625,0.000181,2]
[350235083,1737724236773,-949.1,0.00018468,2]
[350235084,1737724236782,-1358.67,0.00018468,2]
[350235085,1737724236792,-500.0,0.00018468,2]
[350235086,1737724236802,-333.33,0.00018468,2]
[350235087,1737724236812,-734.7,0.00018468,2]
[350235088,1737724236822,-2208.92,0.00018468,2]
[350235089,1737724236832,-756.96,0.00018468,2]
[350235090,1737724236841,-605.48,0.00018468,2]
[350235091,1737724236851,-282.3272158,0.00018468,2]
[350235092,1737724236860,-838.33,0.00018468,2]
[350235093,1737724236870,-659.3,0.00018468,2]
[350235094,1737724236881,-5418.82,0.00018468,2]
[350235095,1737724236890,-500.0,0.00018468,2]
[350235096,1737724236900,-520.01,0.00018468,2]
[350235097,1737724236910,-2913.02,0.00018468,2]
[350235099,1737724236919,-500.0,0.00018468,2]
[350235101,1737724236928,-500.0,0.00018468,2]
[350235103,1737724236938,-500.0,0.00018468,2]
[350235105,1737724236948,-500.0,0.00018468,2]
[350235108,1737724236957,-500.0,0.00018468,2]
[350235109,1737724236966,-3169.96,0.00018468,2]
[350235111,1737724236975,-500.0,0.00018468,2]
[350235114,1737724236983,-1683.15,0.00018468,2]
[350235117,1737724236993,-500.0,0.00018468,2]
[350235120,1737724237002,-1479.81,0.00018468,2]
[350235122,1737724237011,-1459.68,0.00018468,2]
[350235124,1737724237021,-500.0,0.00018468,2]
[350235126,1737724237030,-1916.73,0.00018468,2]
[350235128,1737724237039,-1037.42,0.00018468,2]
[350235130,1737724237048,-500.0,0.00018468,2]
[350235132,1737724237058,-500.0,0.00018468,2]
[350235134,1737724237067,-500.0,0.00018468,2]
[350235136,1737724237077,-837.81,0.00018468,2]
[350235138,1737724237086,-500.0,0.00018468,2]
[350235140,1737724237096,-2550.31,0.00018468,2]
[350235141,1737724237105,-500.0,0.00018468,2]
[350235142,1737724237115,-2988.14,0.00018468,2]
[350235143,1737724237126,-500.0,0.00018468,2]
[350235144,1737724237136,-609.6,0.00018468,2]
[350235145,1737724237146,-500.0,0.00018468,2]
[350235146,1737724237156,-500.0,0.00018468,2]
[350235147,1737724237166,-1168.82,0.00018468,2]
[350235148,1737724237176,-500.0,0.00018468,2]
[350235149,1737724237187,-579.27,0.00018468,2]
[350235150,1737724237199,-562.93,0.00018468,2]
[350235151,1737724237209,-500.0,0.00018468,2]
[350235152,1737724237219,-912.82,0.00018468,2]
[350235153,1737724237228,-939.35,0.00018468,2]
[350235154,1737724237238,-500.0,0.00018468,2]
[350235155,1737724237248,-500.0,0.00018468,2]
[350235156,1737724237257,-500.0,0.00018468,2]
[350235157,1737724237267,-1596.29,0.00018468,2]
[350235158,1737724237276,-760.92,0.00018468,2]
[350235159,1737724237286,-500.0,0.00018468,2]
[350235160,1737724237296,-545.97,0.00018468,2]
[350235161,1737724237306,-500.0,0.00018468,2]
[350235162,1737724237315,-500.0,0.00018468,2]
[350235163,1737724237325,-1021.75,0.00018468,2]
[350235164,1737724237334,-763.18,0.00018468,2]
[350235165,1737724237344,-512.32281106,0.00018469,2]
[350235166,1737724237354,-500.0,0.00018469,2]
[350235167,1737724237363,-500.0,0.00018469,2]
[350235168,1737724237373,-500.0,0.00018469,2]
[350235169,1737724237384,-500.0,0.00018469,2]
[350235170,1737724237393,-500.0,0.00018469,2]
[350235171,1737724237403,-500.0,0.00018469,2]
[350235172,1737724237413,-500.0,0.00018469,2]
[350235173,1737724237423,-500.0,0.00018469,2]
[350235174,1737724237432,-210.39051572,0.00018469,2]
[350235175,1737724237442,-537.27,0.00018469,2]
[350235176,1737724237452,-500.0,0.00018469,2]
[350235177,1737724237461,-500.0,0.00018469,2]
[350235178,1737724237471,-952.52,0.00018469,2]
[350235179,1737724237481,-500.0,0.00018469,2]
[350235180,1737724237491,-500.0,0.00018469,2]
[350235181,1737724237500,-500.0,0.00018469,2]
[350235182,1737724237510,-500.0,0.00018469,2]
[350235183,1737724237520,-1158.29,0.00018469,2]
[350235184,1737724237531,-578.6248824,0.00018469,2]
[350235185,1737724237542,-644.79,0.00018469,2]
[350235186,1737724237551,-500.0,0.00018469,2]
[350235187,1737724237565,-500.0,0.00018469,2]
[350235188,1737724237574,-588.5,0.00018469,2]
[350235189,1737724237584,-787.53,0.00018469,2]
[350235190,1737724237593,-500.0,0.00018469,2]
[350235191,1737724237607,-500.0,0.00018469,2]
[350235192,1737724237617,-500.0,0.00018469,2]
[350235193,1737724237627,-869.32,0.00018469,2]
[350235194,1737724237637,-500.0,0.00018469,2]
[350235195,1737724237649,-605.25,0.00018469,2]
[350235196,1737724237658,-500.0,0.00018469,2]
[350235197,1737724237668,-810.3,0.00018469,2]
[350235198,1737724237678,-500.0,0.00018469,2]
[350235199,1737724237688,-558.93,0.00018469,2]
[350235200,1737724237916,-362.26327772,0.00018469,2]
[350235201,1737724237927,-553.2675312,0.00018469,2]
[350235202,1737724237937,-506.19,0.00018469,2]
[350235203,1737724237946,-500.0,0.00018469,2]
[350235205,1737724237956,-500.0,0.00018469,2]
[350235206,1737724237965,-150.37193448,0.00018469,2]
[350235208,1737724237975,-500.0,0.00018469,2]
[350235210,1737724237984,-500.0,0.00018469,2]
[350235212,1737724237994,-500.0,0.00018469,2]
[350235213,1737724238004,-500.0,0.00018469,2]
[350235214,1737724238013,-500.0,0.00018469,2]
[350235215,1737724238022,-500.0,0.00018469,2]
[350235216,1737724238032,-500.0,0.00018469,2]
[350235217,1737724238042,-514.46,0.00018469,2]
[350235218,1737724238051,-500.0,0.00018469,2]
[350235219,1737724238060,-914.55,0.00018469,2]
[350235220,1737724238070,-500.0,0.00018469,2]
[350235221,1737724238079,-511.68,0.00018469,2]
[350235222,1737724238089,-677.09,0.00018469,2]
[350235223,1737724238098,-500.0,0.00018469,2]
[350235224,1737724238108,-500.0,0.00018469,2]
[350235225,1737724238118,-500.0,0.00018469,2]
[350235226,1737724238127,-868.33,0.00018469,2]
[350235227,1737724238138,-1017.6,0.00018469,2]
[350235228,1737724238148,-788.07,0.00018469,2]
[350235229,1737724238157,-500.0,0.00018469,2]
[350235230,1737724238167,-500.0,0.00018469,2]
[350235231,1737724238179,-500.0,0.00018469,2]
[350235232,1737724238190,-500.0,0.00018469,2]
[350235233,1737724238199,-500.0,0.00018469,2]
[350235234,1737724238210,-513.48053331,0.00018469,2]
[350235235,1737724238220,-500.0,0.00018469,2]
[350235236,1737724238229,-500.0,0.00018469,2]
[350235237,1737724238239,-867.71,0.00018469,2]
[350235238,1737724238249,-500.0,0.00018469,2]
[350235239,1737724238258,-567.52,0.00018469,2]
[350235240,1737724238268,-1118.61,0.00018469,2]
[350235241,1737724238278,-1013.0,0.00018469,2]
[350235242,1737724238287,-500.0,0.00018469,2]
[350235243,1737724238296,-500.0,0.00018469,2]
[350235244,1737724238306,-500.0,0.00018469,2]
[350235245,1737724238315,-503.74,0.00018469,2]
[350235246,1737724238325,-2502.7,0.00018469,2]
[350235247,1737724238334,-500.0,0.00018469,2]
[350235248,1737724238344,-500.0,0.00018469,2]
[350235249,1737724238354,-500.0,0.00018469,2]
[350235250,1737724238364,-1148.61,0.00018469,2]
[350235251,1737724238373,-500.0,0.00018469,2]
[350235252,1737724238384,-500.0,0.00018469,2]
[350235253,1737724238393,-3643.45,0.00018469,2]
[350235254,1737724238403,-2631.64,0.00018469,2]
[350235255,1737724238413,-531.35475704,0.00018469,2]
[350235256,1737724238422,-1352.50382,0.00018469,2]
[350235257,1737724238431,-798.42,0.00018469,2]
[350235258,1737724238440,-699.81,0.00018469,2]
[350235259,1737724238450,-905.31,0.00018469,2]
[350235260,1737724238459,-500.0,0.00018469,2]
[350235261,1737724238469,-500.0,0.00018469,2]
[350235263,1737724238478,-500.0,0.00018469,2]
[350235264,1737724238488,-500.0,0.00018469,2]
[350235266,1737724238497,-1222.03,0.00018469,2]
[350235268,1737724238506,-500.0,0.00018469,2]
[350235270,1737724238515,-964.461239,0.00018469,2]
[350235271,1737724238525,-500.0,0.00018469,2]
[350235272,1737724238535,-1752.32,0.00018469,2]
[350235273,1737724238545,-1620.92,0.00018469,2]
[350235274,1737724238554,-500.0,0.00018469,2]
[350235276,1737724238564,-500.0,0.00018469,2]
[350235277,1737724238573,-635.84,0.00018469,2]
[350235278,1737724238582,-2807.66,0.00018469,2]
[350235279,1737724238592,-500.0,0.00018469,2]
[350235280,1737724238604,-500.0,0.00018469,2]
[350235281,1737724238614,-649.99,0.00018469,2]
[350235282,1737724238624,-500.0,0.00018469,2]
[350235283,1737724238635,-918.7,0.00018469,2]
[350235284,1737724238646,-500.0,0.00018469,2]
[350235285,1737724238656,-1017.36,0.00018469,2]
[350235287,1737724238667,-1363.0,0.00018469,2]
[350235289,1737724238684,-500.0,0.00018469,2]
[350235290,1737724238693,-1266.04,0.00018469,2]
[350235291,1737724238705,-656.62,0.00018469,2]
[350235292,1737724238717,-820.22,0.00018469,2]
[350235293,1737724238726,-1172.17,0.00018469,2]
[350235294,1737724238735,-500.0,0.00018469,2]
[350235295,1737724238745,-894.99,0.00018469,2]
[350235296,1737724238754,-2109.54,0.00018469,2]
[350235297,1737724238763,-4837.12,0.00018469,2]
[350235298,1737724238772,-1231.01,0.00018469,2]
[350235299,1737724238782,-557.29,0.00018469,2]
[350235301,1737724238791,-1966.41,0.00018469,2]
[350235303,1737724238800,-2941.04,0.00018469,2]
[350235304,1737724238809,-3516.03,0.00018469,2]
[350235305,1737724238819,-550.0,0.00018469,2]
[350235306,1737724238828,-500.0,0.00018469,2]
[350235307,1737724238839,-1570.06,0.00018469,2]
[350235308,1737724238848,-500.0,0.00018469,2]
[350235309,1737724238858,-1479.93,0.00018469,2]
[350235310,1737724238867,-12259.79,0.00018469,2]
[350235311,1737724238879,-4710.15,0.00018469,2]
[350235312,1737724238889,-500.0,0.00018469,2]
[350235313,1737724238898,-607.61,0.00018469,2]
[350235314,1737724238908,-500.0,0.00018469,2]
[350235315,1737724238917,-1076.64,0.00018469,2]
[350235316,1737724238927,-2814.75,0.00018469,2]
[350235317,1737724238936,-500.0,0.00018469,2]
[350235318,1737724238946,-500.0,0.00018469,2]
[350235319,1737724238956,-252.03,0.00018469,2]
[350235320,1737724238965,-247.04,0.00018471,2]
[350235321,1737724238975,-500.0,0.00018471,2]
[350235322,1737724238985,-500.0,0.00018471,2]
[350235323,1737724238994,-502.02629512,0.00018471,2]
[350235324,1737724239003,-500.0,0.00018471,2]
[350235325,1737724239012,-500.0,0.00018471,2]
[350235326,1737724239022,-497.61469025,0.00018471,2]
[350235327,1737724239031,-502.6732026,0.00018471,2]
[350235328,1737724239041,-503.8988649,0.00018471,2]
[350235329,1737724239050,-500.0,0.00018471,2]
[350235330,1737724239059,-500.0,0.00018471,2]
[350235331,1737724239069,-500.0,0.00018471,2]
[350235332,1737724239078,-500.0,0.00018471,2]
[350235333,1737724239088,-500.0,0.00018471,2]
[350235334,1737724239097,-500.0,0.00018471,2]
[350235335,1737724239108,-500.0,0.00018471,2]
[350235336,1737724239117,-506.0899299,0.00018471,2]
[350235337,1737724239127,-500.0,0.00018471,2]
[350235338,1737724239138,-500.0,0.00018471,2]
[350235339,1737724239147,-500.0,0.00018471,2]
[350235340,1737724239156,-500.0,0.00018471,2]
[350235341,1737724239166,-500.28896415,0.00018471,2]
[350235342,1737724239176,-502.0110222,0.00018471,2]
[350235343,1737724239185,-501.36040287,0.00018471,2]
[350235344,1737724239196,-502.81777715,0.00018471,2]
[350235345,1737724239205,-500.0,0.00018471,2]
[350235346,1737724239215,-503.95630134,0.00018471,2]
[350235347,1737724239224,-500.0,0.00018471,2]
[350235348,1737724239234,-500.0,0.00018471,2]
[350235349,1737724239243,-947.53,0.00018471,2]
[350235350,1737724239252,-289.13900246,0.00018471,2]
[350235351,1737724239262,-766.68,0.00018471,2]
[350235352,1737724239271,-500.0,0.00018471,2]
[350235353,1737724239280,-500.0,0.00018471,2]
[350235354,1737724239290,-500.0,0.00018471,2]
[350235355,1737724239299,-671.55,0.00018471,2]
[350235356,1737724239309,-500.0,0.00018471,2]
[350235357,1737724239319,-500.0,0.00018471,2]
[350235358,1737724239329,-500.0,0.00018471,2]
[350235359,1737724239338,-500.0,0.00018471,2]
[350235360,1737724239348,-500.0,0.00018471,2]
[350235361,1737724239358,-150.0,0.000185,2]
[350235362,1737724239367,-164.51597562,0.000185,2]
[350235363,1737724239376,-500.0,0.000185,6]
[350235364,1737724239387,-851.94443085,0.00018506,2]
[350235365,1737724239397,-152.55,0.00018512,2]
[350235366,1737724239406,-10210.49389661,0.0001858,2]
[350235367,1737724239421,-45.57245409,0.0001858,2]
[350235368,1737724239430,-3000.0,0.0001859,2]
[350235369,1737724239439,-199.3,0.00018595,2]
[350235370,1737724239448,-851.94443077,0.000186,2]
[350235371,1737724239458,-1100.0,0.000186,6]
[350235372,1737724239467,-1045.54,0.00018604,2]
[350235373,1737724239476,-638.3,0.00018604,2]
[350235374,1737724239487,-530.71,0.00018604,2]
[350235375,1737724239496,-1282.04,0.00018604,2]
[350235376,1737724239506,-1264.47,0.00018604,2]
[350235377,1737724239515,-773.48,0.00018604,2]
[350235378,1737724239525,-1470.04,0.00018604,2]
[350235379,1737724239535,-2610.81,0.00018604,2]
[350235380,1737724239544,-1757.37,0.00018604,2]
[350235381,1737724239554,-1075.22,0.00018604,2]
[350235382,1737724239563,-3847.08,0.00018604,2]
[350235383,1737724239574,-500.0,0.00018604,2]
[350235384,1737724239583,-812.79,0.00018604,2]
[350235385,1737724239593,-1071.95,0.00018604,2]
[350235386,1737724239605,-642.24,0.00018604,2]
[350235387,1737724239615,-605.53,0.00018604,2]
[350235388,1737724239624,-500.0,0.00018604,2]
[350235389,1737724239635,-716.33,0.00018604,2]
[350235390,1737724239645,-500.0,0.00018605,2]
[350235391,1737724239656,-500.0,0.00018605,2]
[350235392,1737724239666,-813.62,0.00018605,2]
[350235393,1737724239676,-500.0,0.00018605,2]
[350235394,1737724239686,-750.12,0.00018605,2]
[350235395,1737724239695,-576.23,0.00018605,2]
[350235396,1737724239705,-542.75,0.00018605,2]
[350235397,1737724239717,-589.29,0.00018605,2]
[350235398,1737724239727,-500.0,0.00018605,2]
[350235399,1737724239737,-500.0,0.00018605,2]
[350235400,1737724239746,-500.0,0.00018605,2]
[350235401,1737724239756,-500.0,0.00018605,2]
[350235402,1737724239766,-500.0,0.00018605,2]
[350235403,1737724239776,-715.83,0.00018605,2]
[350235404,1737724239785,-500.0,0.00018605,2]
[350235405,1737724239795,-824.97,0.00018605,2]
[350235406,1737724239805,-913.61,0.00018605,2]
[350235407,1737724239814,-500.0,0.00018605,2]
[350235408,1737724239824,-500.0,0.00018605,2]
[350235409,1737724239833,-500.0,0.00018605,2]
[350235410,1737724239843,-556.12,0.00018605,2]
[350235411,1737724239853,-500.0,0.00018605,2]
[350235412,1737724239862,-500.0,0.00018605,2]
[350235413,1737724239872,-500.0,0.00018605,2]
[350235414,1737724239882,-682.43,0.00018605,2]
[350235415,1737724239892,-500.0,0.00018605,2]
[350235416,1737724239902,-500.0,0.00018605,2]
[350235417,1737724239912,-636.3,0.00018605,2]
[350235418,1737724239921,-978.76,0.00018605,2]
[350235419,1737724239931,-500.0,0.00018605,2]
[350235420,1737724239941,-954.85,0.00018605,2]
[350235421,1737724239950,-500.0,0.00018605,2]
[350235422,1737724239960,-500.0,0.00018605,2]
[350235423,1737724239969,-1144.41,0.00018605,2]
[350235424,1737724239979,-500.0,0.00018605,2]
[350235425,1737724239989,-500.0,0.00018605,2]
[350235426,1737724239999,-522.22,0.00018605,2]
[350235427,1737724240008,-804.95,0.00018605,2]
[350235428,1737724240018,-500.0,0.00018605,2]
[350235429,1737724240028,-500.0,0.00018605,2]
[350235430,1737724240038,-500.0,0.00018605,2]
[350235431,1737724240048,-500.0,0.00018605,2]
[350235432,1737724240057,-500.0,0.00018605,2]
[350235433,1737724240067,-770.22057477,0.00018605,2]
[350235434,1737724240079,-557.82942523,0.00018605,2]
[350235435,1737724240089,-101.67695476,0.00018605,2]
[350235439,1737724240219,-398.32304524,0.00018605,2]
[350235440,1737724240229,-500.0,0.00018605,2]
[350235441,1737724240239,-736.25,0.00018605,2]
[350235442,1737724240256,-500.0,0.00018605,2]
[350235443,1737724240268,-500.0,0.00018605,2]
[350235444,1737724240277,-754.47,0.00018605,2]
[350235445,1737724240287,-500.0,0.00018605,2]
[350235446,1737724240297,-872.06,0.00018605,2]
[350235447,1737724240307,-926.06,0.00018605,2]
[350235448,1737724240316,-552.25,0.00018605,2]
[350235449,1737724240326,-500.0,0.00018605,2]
[350235450,1737724240336,-699.92,0.00018605,2]
[350235451,1737724240346,-512.24534048,0.00018605,2]
[350235452,1737724240359,-234.23465952,0.00018605,2]
[350235453,1737724240369,-788.55,0.00018605,2]
[350235454,1737724240379,-500.0,0.00018605,2]
[350235455,1737724240390,-500.0,0.00018605,2]
[350235456,1737724240399,-500.0,0.00018605,2]
[350235457,1737724240409,-500.0,0.00018605,2]
[350235458,1737724240419,-500.0,0.00018605,2]
[350235459,1737724240429,-1465.85,0.00018605,2]
[350235460,1737724240438,-500.0,0.00018605,2]
[350235461,1737724240448,-542.93,0.00018605,2]
[350235462,1737724240458,-500.0,0.00018605,2]
[350235463,1737724240467,-1034.89,0.00018605,2]
[350235464,1737724240477,-653.76,0.00018605,2]
[350235465,1737724240486,-1813.61,0.00018605,2]
[350235466,1737724240495,-500.0,0.00018605,2]
[350235467,1737724240505,-17.84159053,0.00018605,2]
[350235468,1737724240517,-482.15840947,0.00018605,2]
[350235469,1737724240526,-565.51,0.00018605,2]
[350235470,1737724240536,-1072.52631469,0.00018605,2]
[350235471,1737724240551,-1725.86368531,0.00018605,2]
[350235472,1737724240561,-949.1,0.00018605,2]
[350235473,1737724240570,-595.54,0.00018605,2]
[350235474,1737724240580,-1508.49,0.00018605,2]
[350235475,1737724240589,-1358.67,0.00018605,2]
[350235476,1737724240600,-500.0,0.00018605,2]
[350235477,1737724240610,-4623.34,0.00018605,2]
[350235478,1737724240619,-734.7,0.00018605,2]
[350235479,1737724240629,-2208.92,0.00018605,2]
[350235480,1737724240639,-756.96,0.00018605,2]
[350235481,1737724240650,-500.0,0.00018605,2]
[350235482,1737724240659,-8204.62,0.00018605,2]
[350235483,1737724240668,-605.48,0.00018605,2]
[350235484,1737724240678,-51.12838672,0.00018605,2]
[350235485,1737724240689,-271.37936228,0.00018605,2]
[350235486,1737724240700,-515.822251,0.00018605,2]
[350235487,1737724240710,-671.03,0.00018605,2]
[350235488,1737724240719,-970.32,0.00018605,2]
[350235489,1737724240728,-659.3,0.00018605,2]
[350235490,1737724240738,-5418.82,0.00018605,2]
[350235491,1737724240747,-500.0,0.00018605,2]
[350235492,1737724240757,-520.01,0.00018605,2]
[350235493,1737724240767,-2913.02,0.00018605,2]
[350235494,1737724240776,-603.25,0.00018605,2]
[350235495,1737724240786,-500.0,0.00018605,2]
[350235496,1737724240795,-500.0,0.00018605,2]
[350235497,1737724240804,-500.0,0.00018605,2]
[350235498,1737724240813,-500.0,0.00018605,2]
[350235499,1737724240822,-500.0,0.00018605,2]
[350235500,1737724240993,-3169.96,0.00018605,2]
[350235501,1737724241004,-500.0,0.00018605,2]
[350235502,1737724241014,-500.0,0.00018605,2]
[350235503,1737724241023,-1683.15,0.00018605,2]
[350235504,1737724241032,-443.68351525,0.00018605,2]
[350235505,1737724241042,-939.43,0.00018605,2]
[350235506,1737724241052,-1479.81,0.00018605,2]
[350235507,1737724241062,-1459.68,0.00018605,2]
[350235508,1737724241072,-500.0,0.00018605,2]
[350235509,1737724241080,-1232.67,0.00018605,2]
[350235510,1737724241090,-1916.73,0.00018605,2]
[350235511,1737724241099,-1037.42,0.00018605,2]
[350235512,1737724241108,-500.0,0.00018605,2]
[350235513,1737724241117,-500.0,0.00018605,2]
[350235514,1737724241127,-500.0,0.00018605,2]
[350235515,1737724241137,-1400.25,0.00018605,2]
[350235516,1737724241146,-837.81,0.00018605,2]
[350235517,1737724241156,-500.0,0.00018605,2]
[350235518,1737724241165,-2550.31,0.00018605,2]
[350235519,1737724241174,-500.0,0.00018605,2]
[350235520,1737724241183,-500.0,0.00018605,2]
[350235521,1737724241192,-2988.14,0.00018605,2]
[350235522,1737724241202,-500.0,0.00018605,2]
[350235523,1737724241211,-609.6,0.00018605,2]
[350235524,1737724241220,-1000.0,0.00018605,2]
[350235525,1737724241229,-500.0,0.00018605,2]
[350235526,1737724241239,-659.3,0.00018605,2]
[350235527,1737724241248,-500.0,0.00018605,2]
[350235528,1737724241257,-1168.82,0.00018605,2]
[350235529,1737724241268,-500.0,0.00018605,2]
[350235530,1737724241278,-500.0,0.00018605,2]
[350235531,1737724241289,-579.27,0.00018605,2]
[350235532,1737724241299,-562.93,0.00018605,2]
[350235533,1737724241310,-912.82,0.00018605,2]
[350235534,1737724241320,-939.35,0.00018605,2]
[350235535,1737724241330,-2314.06,0.00018605,2]
[350235536,1737724241340,-500.0,0.00018605,2]
[350235537,1737724241349,-500.0,0.00018605,2]
[350235538,1737724241358,-343.23423375,0.00018605,2]
[350235539,1737724241375,-156.76576625,0.00018605,2]
[350235540,1737724241386,-813.18515253,0.00018605,2]
[350235541,1737724241397,-783.10484747,0.00018605,2]
[350235542,1737724241406,-24.96315103,0.00018605,2]
[350235543,1737724241420,-637.22651084,0.00018605,2]
[350235544,1737724241441,-98.73033813,0.00018605,2]
[350235545,1737724241451,-2010.51,0.00018605,2]
[350235546,1737724241459,-500.0,0.00018605,2]
[350235547,1737724241469,-545.97,0.00018605,2]
[350235548,1737724241478,-447.68966183,0.00018605,2]
[350235549,1737724241864,-416.21892129,0.00014781,7]
[350235550,1737724241875,-515.75182614,0.00018369,2]
[350235551,1737724241884,-52.31033817,0.00018605,2]
[350235552,1737724241894,-500.0,0.00018605,2]
[350235553,1737724241904,-623.7189144,0.00018605,2]
[350235554,1737724241919,-398.0310856,0.00018605,2]
[350235555,1737724241929,-5.23544689,0.00018605,2]
[350235556,1737724241941,-757.94455311,0.00018605,2]
[350235557,1737724241951,-500.0,0.00018606,2]
[350235558,1737724241960,-604.73,0.00018606,2]
[350235559,1737724241970,-500.0,0.00018606,2]
[350235560,1737724241979,-323.09898262,0.00018606,7]
[350235561,1737724241990,-500.0,0.00018606,2]
[350235562,1737724241999,-500.0,0.00018606,2]
[350235563,1737724242010,-500.0,0.00018606,2]
[350235564,1737724242019,-500.0,0.00018606,2]
[350235565,1737724242029,-500.0,0.00018606,2]
[350235566,1737724242040,-608.75,0.00018606,2]
[350235567,1737724242049,-35.35050458,0.00018606,2]
[350235568,1737724242062,-464.64949542,0.00018606,2]
[350235569,1737724242071,-500.0,0.00018606,2]
[350235570,1737724242081,-500.0,0.00018606,2]
[350235571,1737724242092,-500.0,0.00018606,2]
[350235572,1737724242103,-500.0,0.00018606,2]
[350235573,1737724242112,-500.0,0.00018606,2]
[350235574,1737724242122,-500.0,0.00018606,2]
[350235575,1737724242131,-500.0,0.00018606,2]
[350235576,1737724242141,-565.86103798,0.00018606,2]
[350235577,1737724242150,-500.0,0.00018606,2]
[350235578,1737724242159,-500.0,0.00018606,2]
[350235579,1737724242168,-500.0,0.00018606,2]
[350235580,1737724242178,-500.0,0.00018606,2]
[350235581,1737724242187,-282.45357913,0.00018606,2]
[350235582,1737724242196,-500.0,0.00018606,2]
[350235583,1737724242206,-500.0,0.00018606,2]
[350235584,1737724242215,-500.0,0.00018606,2]
[350235585,1737724242226,-537.27,0.00018606,2]
[350235586,1737724242236,-500.0,0.00018606,2]
[350235587,1737724242245,-952.52,0.00018606,2]
[350235588,1737724242255,-500.0,0.00018606,2]
[350235589,1737724242265,-500.0,0.00018606,2]
[350235590,1737724242274,-500.0,0.00018606,2]
[350235591,1737724242283,-500.0,0.00018606,2]
[350235592,1737724242295,-1158.29,0.00018606,2]
[350235593,1737724242304,-644.79,0.00018606,2]
[350235594,1737724242315,-500.0,0.00018606,2]
[350235595,1737724242325,-500.0,0.00018606,2]
[350235596,1737724242336,-588.5,0.00018606,2]
[350235597,1737724242345,-787.53,0.00018606,2]
[350235598,1737724242355,-500.0,0.00018606,2]
[350235599,1737724242365,-500.0,0.00018606,2]
[350235600,1737724242374,-500.0,0.00018606,2]